[Event "TePe Sigeman & Co Chess Tournament 2024"]
[Site "Elite Plaza Hotel, Gustav Adolfs Torg 49, Malmo, Sweden"]
[Date "2024.05.03"]
[Round "7.1"]
[White "Ju, Wenjun"]
[Black "Korobov, Anton"]
[Result "1-0"]
[TimeControl "90 minutes for 40 moves + 30 minutes for the rest of the game + 30 seconds per move from move one."]
[WhiteTitle "GM"]
[BlackTitle "GM"]
[WhiteFideId "8603006"]
[BlackFideId "14105730"]
[WhiteElo "2559"]
[BlackElo "2651"]

1. e4 {[%clk 01:30:57]} {[%emt 00:00:02]} c5 {[%clk 01:30:50]} {[%emt
00:00:09]} 2. Nf3 {[%clk 01:31:24]} {[%emt 00:00:05]} d6 {[%clk 01:31:13]}
{[%emt 00:00:06]} 3. Bb5+ {[%clk 01:31:47]} {[%emt 00:00:08]} Nd7 {[%clk
01:31:36]} {[%emt 00:00:06]} 4. d4 {[%clk 01:32:05]} {[%emt 00:00:13]} cxd4
{[%clk 01:31:46]} {[%emt 00:00:20]} 5. Qxd4 {[%clk 01:32:30]} {[%emt 00:00:05]}
a6 {[%clk 01:32:01]} {[%emt 00:00:14]} 6. Be2 {[%clk 01:32:51]} {[%emt
00:00:09]} Ngf6 {[%clk 01:32:03]} {[%emt 00:00:27]} 7. O-O {[%clk 01:32:58]}
{[%emt 00:00:24]} e6 {[%clk 01:31:44]} {[%emt 00:00:48]} 8. Nc3 {[%clk
01:20:47]} {[%emt 00:12:41]} Qc7 {[%clk 01:29:16]} {[%emt 00:02:58]} 9. a4
{[%clk 01:20:23]} {[%emt 00:00:55]} b6 {[%clk 01:29:18]} {[%emt 00:00:28]} 10.
Bg5 {[%clk 01:15:31]} {[%emt 00:05:23]} Bb7 {[%clk 01:28:23]} {[%emt 00:01:24]}
11. Nd2 {[%clk 01:05:43]} {[%emt 00:10:18]} h6 {[%clk 01:09:32]} {[%emt
00:19:20]} 12. Bxf6 {[%clk 00:59:58]} {[%emt 00:06:15]} Nxf6 {[%clk 01:09:34]}
{[%emt 00:00:28]} 13. Nc4 {[%clk 01:00:22]} {[%emt 00:00:08]} Qc5 {[%clk
01:09:43]} {[%emt 00:00:20]} 14. Rad1 {[%clk 00:56:45]} {[%emt 00:04:07]} Qxd4
{[%clk 01:04:07]} {[%emt 00:06:05]} 15. Rxd4 {[%clk 00:57:12]} {[%emt
00:00:04]} d5 {[%clk 01:03:45]} {[%emt 00:00:52]} 16. exd5 {[%clk 00:56:58]}
{[%emt 00:00:44]} Bc5 {[%clk 01:03:20]} {[%emt 00:00:54]} 17. Rdd1 {[%clk
00:49:32]} {[%emt 00:07:56]} exd5 {[%clk 01:01:56]} {[%emt 00:01:54]} 18. Bf3
{[%clk 00:49:31]} {[%emt 00:00:31]} O-O-O {[%clk 01:01:20]} {[%emt 00:01:05]}
19. Ne5 {[%clk 00:49:56]} {[%emt 00:00:06]} Rhe8 {[%clk 01:01:13]} {[%emt
00:00:36]} 20. Nd3 {[%clk 00:45:45]} {[%emt 00:04:43]} Bd6 {[%clk 00:58:55]}
{[%emt 00:02:45]} 21. Ne2 {[%clk 00:44:05]} {[%emt 00:02:11]} Ne4 {[%clk
00:55:06]} {[%emt 00:04:18]} 22. Nd4 {[%clk 00:44:32]} {[%emt 00:00:04]} Kc7
{[%clk 00:52:04]} {[%emt 00:03:32]} 23. h4 {[%clk 00:42:10]} {[%emt 00:02:52]}
Be7 {[%clk 00:44:24]} {[%emt 00:08:09]} 24. g3 {[%clk 00:41:30]} {[%emt
00:01:11]} Nc5 {[%clk 00:33:27]} {[%emt 00:11:27]} 25. Nxc5 {[%clk 00:36:25]}
{[%emt 00:05:36]} bxc5 {[%clk 00:33:29]} {[%emt 00:00:28]} 26. Ne2 {[%clk
00:36:44]} {[%emt 00:00:11]} g5 {[%clk 00:32:23]} {[%emt 00:01:35]} 27. hxg5
{[%clk 00:27:40]} {[%emt 00:09:35]} hxg5 {[%clk 00:32:43]} {[%emt 00:00:10]} 28.
Rd2 {[%clk 00:27:36]} {[%emt 00:00:34]} Bf6 {[%clk 00:31:05]} {[%emt 00:02:07]}
29. Rfd1 {[%clk 00:26:39]} {[%emt 00:01:27]} Bc6 {[%clk 00:24:40]} {[%emt
00:06:55]} 30. b3 {[%clk 00:26:44]} {[%emt 00:00:26]} Rd7 {[%clk 00:23:29]}
{[%emt 00:01:41]} 31. Kf1 {[%clk 00:23:47]} {[%emt 00:03:27]} Red8 {[%clk
00:21:54]} {[%emt 00:02:04]} 32. Rd3 {[%clk 00:17:23]} {[%emt 00:06:54]} c4
{[%clk 00:09:46]} {[%emt 00:12:38]} 33. R3d2 {[%clk 00:14:27]} {[%emt
00:03:26]} Rd6 {[%clk 00:09:17]} {[%emt 00:00:59]} 34. Nd4 {[%clk 00:14:07]}
{[%emt 00:00:51]} Bd7 {[%clk 00:09:14]} {[%emt 00:00:33]} 35. Bh5 {[%clk
00:08:00]} {[%emt 00:06:37]} Bg7 {[%clk 00:03:35]} {[%emt 00:06:08]} 36. Kg1
{[%clk 00:05:43]} {[%emt 00:02:48]} f5 {[%clk 00:03:07]} {[%emt 00:00:58]} 37.
Be2 {[%clk 00:03:57]} {[%emt 00:02:16]} Kb6 {[%clk 00:01:28]} {[%emt 00:02:09]}
38. a5+ {[%clk 00:03:07]} {[%emt 00:01:21]} Kc5 {[%clk 00:00:44]} {[%emt
00:01:15]} 39. c3 {[%clk 00:03:29]} {[%emt 00:00:08]} Bxd4 {[%clk 00:01:02]}
{[%emt 00:00:11]} 40. b4+ {[%clk 00:03:56]} {[%emt 00:00:03]} Kc6 {[%clk
00:00:55]} {[%emt 00:00:37]} 41. Rxd4 {[%clk 00:04:22]} {[%emt 00:00:04]} Be6
{[%clk 00:01:10]} {[%emt 00:00:14]} 42. Bf1 {[%clk 00:01:14]} {[%emt 00:03:38]}
Bf7 {[%clk 00:27:07]} {[%emt 00:04:34]} 43. R1d2 {[%clk 00:25:57]} {[%emt
00:05:48]} f4 {[%clk 00:24:36]} {[%emt 00:03:01]} 44. Bg2 {[%clk 00:19:44]}
{[%emt 00:06:43]} Kb5 {[%clk 00:24:34]} {[%emt 00:00:31]} 45. Bf3 {[%clk
00:13:16]} {[%emt 00:06:59]} fxg3 {[%clk 00:22:32]} {[%emt 00:02:32]} 46. fxg3
{[%clk 00:13:44]} {[%emt 00:00:02]} Re8 {[%clk 00:21:26]} {[%emt 00:01:36]} 47.
Bxd5 {[%clk 00:11:46]} {[%emt 00:02:29]} Rxd5 {[%clk 00:21:45]} {[%emt
00:00:11]} 48. Rxd5+ {[%clk 00:12:13]} {[%emt 00:00:03]} Bxd5 {[%clk 00:22:11]}
{[%emt 00:00:04]} 49. Rxd5+ {[%clk 00:12:41]} {[%emt 00:00:02]} Ka4 {[%clk
00:22:35]} {[%emt 00:00:06]} 50. Kf2 {[%clk 00:12:03]} {[%emt 00:01:08]} Kb3
{[%clk 00:21:52]} {[%emt 00:01:13]} 51. b5 {[%clk 00:10:37]} {[%emt 00:01:56]}
axb5 {[%clk 00:22:02]} {[%emt 00:00:20]} 52. Rxb5+ {[%clk 00:11:03]} {[%emt
00:00:04]} Kxc3 {[%clk 00:22:27]} {[%emt 00:00:04]} 53. a6 {[%clk 00:10:26]}
{[%emt 00:01:08]} Ra8 {[%clk 00:20:44]} {[%emt 00:02:12]} 54. Rb6 {[%clk
00:09:51]} {[%emt 00:01:05]} Kd4 {[%clk 00:20:35]} {[%emt 00:00:38]} 55. Ke2
{[%clk 00:09:06]} {[%emt 00:01:16]} Kc5 {[%clk 00:19:54]} {[%emt 00:01:11]} 56.
Rg6 {[%clk 00:09:26]} {[%emt 00:00:10]} Kb5 {[%clk 00:20:17]} {[%emt 00:00:07]}
57. Rxg5+ {[%clk 00:09:51]} {[%emt 00:00:05]} Kxa6 {[%clk 00:20:15]} {[%emt
00:00:32]} 58. Rc5 {[%clk 00:10:17]} {[%emt 00:00:04]} Re8+ {[%clk 00:18:45]}
{[%emt 00:02:00]} 59. Kf3 {[%clk 00:10:41]} {[%emt 00:00:05]} Rf8+ {[%clk
00:19:12]} {[%emt 00:00:03]} 60. Kg2 {[%clk 00:09:42]} {[%emt 00:01:29]} Rg8
{[%clk 00:19:41]} 61. Rxc4 {[%clk 00:09:56]} {[%emt 00:00:17]} Kb5 {[%clk
00:20:10]} 62. Rc3 {[%clk 00:10:04]} {[%emt 00:00:23]} Kb4 {[%clk 00:20:26]}
{[%emt 00:00:15]} 63. Rc1 {[%clk 00:09:59]} {[%emt 00:00:35]} Kb5 {[%clk
00:20:33]} {[%emt 00:00:23]} 64. Rc2 {[%clk 00:09:51]} {[%emt 00:00:38]} Kb6
{[%clk 00:18:21]} {[%emt 00:02:42]} 65. Rc1 {[%clk 00:06:51]} {[%emt 00:03:31]}
Kb5 {[%clk 00:17:37]} {[%emt 00:01:13]} 66. Kf3 {[%clk 00:06:30]} {[%emt
00:00:51]} Rf8+ {[%clk 00:18:06]} {[%emt 00:00:01]} 67. Ke4 {[%clk 00:06:54]}
{[%emt 00:00:05]} Rg8 {[%clk 00:18:08]} {[%emt 00:00:28]} 68. Kf4 {[%clk
00:07:23]} {[%emt 00:00:02]} Rf8+ {[%clk 00:18:32]} {[%emt 00:00:05]} 69. Ke5
{[%clk 00:07:50]} {[%emt 00:00:03]} Re8 {[%clk 00:17:32]} {[%emt 00:01:31]} 70.
Kf5 {[%clk 00:06:48]} {[%emt 00:01:32]} Rf8 {[%clk 00:17:44]} {[%emt 00:00:17]}
71. Ke6 {[%clk 00:06:03]} {[%emt 00:01:15]} Re8+ {[%clk 00:17:45]} {[%emt
00:00:30]} 72. Kf7 {[%clk 00:05:07]} {[%emt 00:01:25]} Re4 {[%clk 00:18:05]}
{[%emt 00:00:10]} 73. Rg1 {[%clk 00:03:13]} {[%emt 00:02:24]} Rg4 {[%clk
00:18:16]} {[%emt 00:00:19]} 74. Kf6 {[%clk 00:03:36]} {[%emt 00:00:08]} Kc6
{[%clk 00:15:58]} {[%emt 00:02:49]} 75. Kf5 {[%clk 00:04:03]} {[%emt 00:00:02]}
1-0

[ePGN "0.1;DGT LiveChess/2.2.6"]

[Event "TePe Sigeman & Co Chess Tournament 2024"]
[Site "Elite Plaza Hotel, Gustav Adolfs Torg 49, Malmo, Sweden"]
[Date "2024.05.03"]
[Round "7.2"]
[White "Abdusattorov, Nodirbek"]
[Black "Maurizzi, Marc'Andria"]
[Result "1-0"]
[TimeControl "90 minutes for 40 moves + 30 minutes for the rest of the game + 30 seconds per move from move one."]
[WhiteTitle "GM"]
[BlackTitle "GM"]
[WhiteFideId "14204118"]
[BlackFideId "36083534"]
[WhiteElo "2765"]
[BlackElo "2605"]

1. d4 {[%clk 01:30:52]} {[%emt 00:00:07]} d5 {[%clk 01:30:58]} {[%emt
00:00:03]} 2. c4 {[%clk 01:31:11]} {[%emt 00:00:11]} e6 {[%clk 01:31:26]}
{[%emt 00:00:03]} 3. Nf3 {[%clk 01:31:26]} {[%emt 00:00:14]} Nf6 {[%clk
01:31:53]} {[%emt 00:00:03]} 4. g3 {[%clk 01:31:48]} {[%emt 00:00:09]} Be7
{[%clk 01:20:47]} {[%emt 00:11:36]} 5. Bg2 {[%clk 01:32:09]} {[%emt 00:00:08]}
O-O {[%clk 01:21:14]} {[%emt 00:00:03]} 6. Qc2 {[%clk 01:32:32]} {[%emt
00:00:07]} a5 {[%clk 01:15:45]} {[%emt 00:05:59]} 7. O-O {[%clk 01:30:52]}
{[%emt 00:02:09]} Nc6 {[%clk 01:15:54]} {[%emt 00:00:22]} 8. a3 {[%clk
01:25:09]} {[%emt 00:06:13]} dxc4 {[%clk 01:15:11]} {[%emt 00:01:13]} 9. Qxc4
{[%clk 01:24:13]} {[%emt 00:01:26]} a4 {[%clk 01:14:19]} {[%emt 00:01:22]} 10.
Nc3 {[%clk 01:19:16]} {[%emt 00:05:27]} Bd7 {[%clk 01:14:17]} {[%emt 00:00:32]}
11. Bf4 {[%clk 01:13:23]} {[%emt 00:06:23]} Na5 {[%clk 01:11:41]} {[%emt
00:03:06]} 12. Qd3 {[%clk 01:13:29]} {[%emt 00:00:23]} c5 {[%clk 00:55:18]}
{[%emt 00:16:54]} 13. Rad1 {[%clk 00:59:37]} {[%emt 00:14:22]} Bc6 {[%clk
00:45:14]} {[%emt 00:10:34]} 14. e4 {[%clk 00:58:37]} {[%emt 00:01:30]} cxd4
{[%clk 00:37:41]} {[%emt 00:08:04]} 15. Nxd4 {[%clk 00:59:00]} {[%emt
00:00:07]} Bc5 {[%clk 00:23:23]} {[%emt 00:14:49]} 16. Nxc6 {[%clk 00:50:18]}
{[%emt 00:09:12]} Qxd3 {[%clk 00:23:27]} {[%emt 00:00:26]} 17. Rxd3 {[%clk
00:48:25]} {[%emt 00:02:23]} Nxc6 {[%clk 00:23:56]} {[%emt 00:00:01]} 18. e5
{[%clk 00:47:43]} {[%emt 00:01:12]} Nh5 {[%clk 00:23:43]} {[%emt 00:00:42]} 19.
Rd7 {[%clk 00:44:43]} {[%emt 00:03:30]} Nxf4 {[%clk 00:21:39]} {[%emt
00:02:34]} 20. gxf4 {[%clk 00:44:45]} {[%emt 00:00:28]} Nd4 {[%clk 00:16:15]}
{[%emt 00:05:53]} 21. Rxb7 {[%clk 00:34:25]} {[%emt 00:10:50]} Ra7 {[%clk
00:06:08]} {[%emt 00:10:37]} 22. Rd1 {[%clk 00:33:33]} {[%emt 00:01:22]} Rxb7
{[%clk 00:06:09]} {[%emt 00:00:30]} 23. Bxb7 {[%clk 00:34:01]} {[%emt
00:00:02]} Ba7 {[%clk 00:06:14]} {[%emt 00:00:24]} 24. Be4 {[%clk 00:26:59]}
{[%emt 00:07:33]} f6 {[%clk 00:05:06]} {[%emt 00:01:38]} 25. f5 {[%clk
00:26:50]} {[%emt 00:00:39]} Rd8 {[%clk 00:02:07]} {[%emt 00:03:29]} 26. fxe6
{[%clk 00:24:27]} {[%emt 00:02:53]} Ne2+ {[%clk 00:02:30]} {[%emt 00:00:07]} 27.
Kf1 {[%clk 00:24:10]} {[%emt 00:00:47]} Rxd1+ {[%clk 00:02:57]} {[%emt
00:00:03]} 28. Nxd1 {[%clk 00:24:18]} {[%emt 00:00:21]} Nf4 {[%clk 00:03:23]}
{[%emt 00:00:03]} 29. exf6 {[%clk 00:24:14]} {[%emt 00:00:35]} gxf6 {[%clk
00:03:46]} {[%emt 00:00:07]} 30. Nc3 {[%clk 00:24:19]} {[%emt 00:00:25]} Kf8
{[%clk 00:03:52]} {[%emt 00:00:23]} 31. Bf5 {[%clk 00:24:28]} {[%emt 00:00:22]}
1-0

[ePGN "0.1;DGT LiveChess/2.2.6"]

[Event "TePe Sigeman & Co Chess Tournament 2024"]
[Site "Elite Plaza Hotel, Gustav Adolfs Torg 49, Malmo, Sweden"]
[Date "2024.05.03"]
[Round "7.3"]
[White "Svidler, Peter"]
[Black "Keymer, Vincent"]
[Result "1/2-1/2"]
[TimeControl "90 minutes for 40 moves + 30 minutes for the rest of the game + 30 seconds per move from move one."]
[WhiteTitle "GM"]
[BlackTitle "GM"]
[WhiteFideId "4102142"]
[BlackFideId "12940690"]
[WhiteElo "2689"]
[BlackElo "2726"]

1. e4 {[%clk 01:30:56]} {[%emt 00:00:03]} e5 {[%clk 01:30:57]} {[%emt
00:00:04]} 2. Nf3 {[%clk 01:31:17]} {[%emt 00:00:08]} Nc6 {[%clk 01:31:24]}
{[%emt 00:00:04]} 3. Bb5 {[%clk 01:31:38]} {[%emt 00:00:09]} a6 {[%clk
01:31:50]} {[%emt 00:00:04]} 4. Ba4 {[%clk 01:32:02]} {[%emt 00:00:05]} Nf6
{[%clk 01:32:17]} {[%emt 00:00:03]} 5. d3 {[%clk 01:32:20]} {[%emt 00:00:11]}
Bc5 {[%clk 01:31:14]} {[%emt 00:01:33]} 6. Bxc6 dxc6 {[%clk 01:31:39]} 7. Qe2
{[%clk 01:32:58]} {[%emt 00:00:05]} Qe7 {[%clk 01:20:56]} {[%emt 00:11:13]} 8.
Nbd2 {[%clk 01:30:52]} {[%emt 00:02:36]} Bg4 {[%clk 01:15:56]} {[%emt
00:05:31]} 9. h3 {[%clk 01:30:19]} {[%emt 00:01:02]} Bh5 {[%clk 01:16:21]}
{[%emt 00:00:05]} 10. g4 {[%clk 01:20:29]} {[%emt 00:10:20]} Bg6 {[%clk
01:16:33]} {[%emt 00:00:18]} 11. Nb3 {[%clk 01:20:35]} {[%emt 00:00:24]} Bd6
{[%clk 01:08:57]} {[%emt 00:08:06]} 12. Nh4 {[%clk 01:20:44]} {[%emt 00:00:20]}
Nd7 {[%clk 01:06:57]} {[%emt 00:02:30]} 13. Nf5 {[%clk 01:20:28]} {[%emt
00:00:45]} Bxf5 {[%clk 01:07:22]} {[%emt 00:00:06]} 14. gxf5 {[%clk 01:18:34]}
{[%emt 00:02:24]} g6 {[%clk 01:06:14]} {[%emt 00:01:38]} 15. Qf3 {[%clk
01:16:09]} {[%emt 00:02:54]} O-O-O {[%clk 01:00:32]} {[%emt 00:06:13]} 16. Be3
{[%clk 01:08:09]} {[%emt 00:08:29]} Bb4+ {[%clk 00:51:29]} {[%emt 00:09:33]} 17.
Ke2 {[%clk 01:02:45]} {[%emt 00:05:55]} Nc5 {[%clk 00:43:14]} {[%emt 00:08:45]}
18. Rag1 {[%clk 00:58:18]} {[%emt 00:04:56]} Rhg8 {[%clk 00:31:09]} {[%emt
00:12:36]} 19. h4 {[%clk 00:47:27]} {[%emt 00:11:20]} Qd6 {[%clk 00:30:30]}
{[%emt 00:01:09]} 20. h5 {[%clk 00:34:39]} {[%emt 00:13:18]} Kb8 {[%clk
00:29:39]} {[%emt 00:01:20]} 21. Bc1 {[%clk 00:23:18]} {[%emt 00:11:50]} Nxb3
{[%clk 00:25:35]} {[%emt 00:04:35]} 22. axb3 {[%clk 00:23:37]} {[%emt
00:00:11]} Bc5 {[%clk 00:25:01]} {[%emt 00:01:04]} 23. Rg3 {[%clk 00:15:13]}
{[%emt 00:08:53]} Bb6 {[%clk 00:24:47]} {[%emt 00:00:45]} 24. Bd2 {[%clk
00:12:52]} {[%emt 00:02:51]} Bd4 {[%clk 00:22:35]} {[%emt 00:02:42]} 25. hxg6
{[%clk 00:10:37]} {[%emt 00:02:45]} hxg6 {[%clk 00:21:22]} {[%emt 00:01:43]} 26.
Rh7 {[%clk 00:10:33]} {[%emt 00:00:34]} Bxb2 {[%clk 00:20:17]} {[%emt
00:01:34]} 27. Rxf7 {[%clk 00:10:07]} {[%emt 00:00:56]} Qc5 {[%clk 00:18:07]}
{[%emt 00:02:41]} 28. c4 {[%clk 00:09:19]} {[%emt 00:01:18]} gxf5 {[%clk
00:15:09]} {[%emt 00:03:27]} 29. Rxg8 {[%clk 00:07:38]} {[%emt 00:02:11]} Rxg8
{[%clk 00:15:38]} {[%emt 00:00:01]} 30. Qxf5 {[%clk 00:08:02]} {[%emt
00:00:06]} Qa3 {[%clk 00:06:37]} {[%emt 00:09:31]} 31. b4 {[%clk 00:04:52]}
{[%emt 00:03:40]} Rd8 {[%clk 00:06:42]} {[%emt 00:00:25]} 32. Rd7 {[%clk
00:05:18]} {[%emt 00:00:05]} Rc8 {[%clk 00:04:59]} {[%emt 00:02:13]} 33. Qf6
{[%clk 00:04:22]} {[%emt 00:01:26]} Qa2 {[%clk 00:02:07]} {[%emt 00:03:23]} 34.
Rd8 {[%clk 00:04:08]} {[%emt 00:00:43]} b6 {[%clk 00:00:40]} {[%emt 00:01:57]}
35. Kf3 {[%clk 00:02:08]} {[%emt 00:02:30]} Qb3 {[%clk 00:00:44]} {[%emt
00:00:26]} 36. Be3 {[%clk 00:01:54]} {[%emt 00:00:44]} Rxd8 {[%clk 00:00:37]}
{[%emt 00:00:37]} 37. Qxd8+ {[%clk 00:02:19]} {[%emt 00:00:05]} Kb7 {[%clk
00:01:05]} {[%emt 00:00:02]} 38. Bxb6 {[%clk 00:02:13]} {[%emt 00:00:36]} Qd1+
{[%clk 00:01:31]} {[%emt 00:00:03]} 39. Kg3 {[%clk 00:02:32]} {[%emt 00:00:11]}
Qg1+ {[%clk 00:01:57]} {[%emt 00:00:04]} 40. Kf3 {[%clk 00:02:45]} {[%emt
00:00:17]} Qd1+ {[%clk 00:02:05]} {[%emt 00:00:22]} 41. Kg3 {[%clk 00:03:13]}
{[%emt 00:00:02]} Qg1+ {[%clk 00:00:41]} {[%emt 00:01:54]} 42. Kf3 {[%clk
00:03:39]} {[%emt 00:00:05]} 1/2-1/2

[ePGN "0.1;DGT LiveChess/2.2.6"]

[Event "TePe Sigeman & Co Chess Tournament 2024"]
[Site "Elite Plaza Hotel, Gustav Adolfs Torg 49, Malmo, Sweden"]
[Date "2024.05.03"]
[Round "7.4"]
[White "Grandelius, Nils"]
[Black "Erigaisi, Arjun"]
[Result "1/2-1/2"]
[TimeControl "90 minutes for 40 moves + 30 minutes for the rest of the game + 30 seconds per move from move one."]
[WhiteTitle "GM"]
[BlackTitle "GM"]
[WhiteFideId "1710400"]
[BlackFideId "35009192"]
[WhiteElo "2664"]
[BlackElo "2756"]

1. e4 {[%clk 01:30:46]} {[%emt 00:00:13]} c5 {[%clk 01:30:09]} {[%emt
00:00:51]} 2. Nf3 {[%clk 01:31:03]} {[%emt 00:00:13]} d6 {[%clk 01:30:32]}
{[%emt 00:00:07]} 3. Bb5+ {[%clk 01:30:39]} {[%emt 00:00:55]} Nd7 {[%clk
01:30:54]} {[%emt 00:00:09]} 4. d4 {[%clk 01:30:36]} {[%emt 00:00:33]} cxd4
{[%clk 01:31:17]} {[%emt 00:00:07]} 5. Nxd4 {[%clk 01:30:58]} {[%emt 00:00:07]}
Ngf6 {[%clk 01:31:10]} {[%emt 00:00:37]} 6. Bd3 {[%clk 01:30:40]} {[%emt
00:00:48]} Nc5 {[%clk 01:30:23]} {[%emt 00:01:18]} 7. Nc3 {[%clk 01:30:51]}
{[%emt 00:00:19]} g6 {[%clk 01:28:49]} {[%emt 00:02:04]} 8. O-O {[%clk
01:29:55]} {[%emt 00:01:25]} Bg7 {[%clk 01:29:13]} {[%emt 00:00:06]} 9. Re1
{[%clk 01:29:43]} {[%emt 00:00:42]} O-O {[%clk 01:20:46]} {[%emt 00:08:58]} 10.
Bf1 {[%clk 01:29:39]} {[%emt 00:00:34]} Bd7 {[%clk 01:18:59]} {[%emt 00:02:16]}
11. a4 {[%clk 01:18:59]} {[%emt 00:11:10]} a6 {[%clk 01:09:30]} {[%emt
00:09:59]} 12. Ra3 {[%clk 01:13:08]} {[%emt 00:06:20]} Rc8 {[%clk 01:02:07]}
{[%emt 00:07:53]} 13. h3 {[%clk 01:00:54]} {[%emt 00:12:45]} Re8 {[%clk
00:52:58]} {[%emt 00:09:38]} 14. a5 {[%clk 00:56:26]} {[%emt 00:04:58]} Bc6
{[%clk 00:46:14]} {[%emt 00:07:14]} 15. Nxc6 {[%clk 00:51:19]} {[%emt
00:05:37]} Rxc6 {[%clk 00:46:24]} {[%emt 00:00:20]} 16. b4 {[%clk 00:41:01]}
{[%emt 00:10:48]} Ncd7 {[%clk 00:46:18]} {[%emt 00:00:36]} 17. Nd5 {[%clk
00:41:01]} {[%emt 00:00:30]} Nxd5 {[%clk 00:31:52]} {[%emt 00:14:55]} 18. exd5
{[%clk 00:40:49]} {[%emt 00:00:42]} Rc7 {[%clk 00:32:18]} {[%emt 00:00:04]} 19.
c4 {[%clk 00:35:22]} {[%emt 00:05:58]} Ne5 {[%clk 00:31:51]} {[%emt 00:00:57]}
20. Rc3 {[%clk 00:32:31]} {[%emt 00:03:21]} Qc8 {[%clk 00:30:47]} {[%emt
00:01:34]} 21. Qb3 {[%clk 00:31:09]} {[%emt 00:01:53]} e6 {[%clk 00:30:14]}
{[%emt 00:01:03]} 22. dxe6 {[%clk 00:28:55]} {[%emt 00:02:45]} fxe6 {[%clk
00:20:03]} {[%emt 00:10:41]} 23. Bb2 {[%clk 00:17:17]} {[%emt 00:12:08]} d5
{[%clk 00:14:30]} {[%emt 00:06:03]} 24. cxd5 {[%clk 00:15:25]} {[%emt
00:02:22]} Rxc3 {[%clk 00:14:55]} {[%emt 00:00:05]} 25. Bxc3 {[%clk 00:07:28]}
{[%emt 00:08:27]} Nf3+ {[%clk 00:15:18]} {[%emt 00:00:06]} 26. gxf3 {[%clk
00:07:56]} {[%emt 00:00:03]} Qxc3 {[%clk 00:15:42]} {[%emt 00:00:06]} 27. Qxc3
{[%clk 00:04:44]} {[%emt 00:03:42]} Bxc3 {[%clk 00:16:07]} {[%emt 00:00:05]} 28.
Re4 {[%clk 00:05:10]} {[%emt 00:00:03]} Kf8 {[%clk 00:16:31]} {[%emt 00:00:06]}
29. dxe6 {[%clk 00:05:04]} {[%emt 00:00:36]} Ke7 {[%clk 00:16:56]} {[%emt
00:00:04]} 30. h4 {[%clk 00:02:50]} {[%emt 00:02:44]} Rd8 {[%clk 00:16:04]}
{[%emt 00:01:22]} 31. Rc4 {[%clk 00:03:14]} {[%emt 00:00:06]} Be5 {[%clk
00:16:29]} {[%emt 00:00:05]} 32. f4 {[%clk 00:02:56]} {[%emt 00:00:48]} Bd6
{[%clk 00:16:53]} {[%emt 00:00:05]} 33. Bg2 {[%clk 00:00:48]} {[%emt 00:02:38]}
Rb8 {[%clk 00:17:17]} {[%emt 00:00:06]} 34. Bd5 {[%clk 00:00:49]} {[%emt
00:00:29]} b6 {[%clk 00:17:16]} {[%emt 00:00:31]} 35. Rc6 {[%clk 00:00:47]}
{[%emt 00:00:33]} bxa5 {[%clk 00:15:50]} {[%emt 00:01:56]} 36. Rxa6 {[%clk
00:01:06]} {[%emt 00:00:11]} axb4 {[%clk 00:12:17]} {[%emt 00:04:03]} 37. Ra7+
{[%clk 00:01:34]} {[%emt 00:00:02]} Ke8 {[%clk 00:12:39]} {[%emt 00:00:07]} 38.
Bc6+ {[%clk 00:00:41]} {[%emt 00:01:23]} Kf8 {[%clk 00:12:48]} {[%emt
00:00:21]} 39. Rf7+ {[%clk 00:00:45]} {[%emt 00:00:26]} Kg8 {[%clk 00:13:12]}
{[%emt 00:00:06]} 40. Rd7 {[%clk 00:00:41]} {[%emt 00:00:34]} b3 {[%clk
00:11:14]} {[%emt 00:02:28]} 41. Rxd6 {[%clk 00:21:30]} {[%emt 00:09:41]} b2
{[%clk 00:41:30]} {[%emt 00:00:13]} 42. Be4 {[%clk 00:21:56]} {[%emt 00:00:04]}
b1=Q+ {[%clk 00:41:55]} {[%emt 00:00:06]} 43. Bxb1 {[%clk 00:22:23]} {[%emt
00:00:02]} Rxb1+ {[%clk 00:42:17]} {[%emt 00:00:07]} 44. Kg2 {[%clk 00:22:51]}
{[%emt 00:00:03]} Kg7 {[%clk 00:41:12]} {[%emt 00:01:36]} 45. Rd5 {[%clk
00:17:57]} {[%emt 00:05:24]} Kf6 {[%clk 00:40:15]} {[%emt 00:01:27]} 46. Re5
{[%clk 00:18:22]} {[%emt 00:00:05]} Ke7 {[%clk 00:38:46]} {[%emt 00:01:58]} 47.
Kf3 {[%clk 00:17:02]} {[%emt 00:01:50]} Rh1 {[%clk 00:34:30]} {[%emt 00:04:46]}
48. h5 {[%clk 00:14:13]} {[%emt 00:03:19]} Rh3+ {[%clk 00:32:34]} {[%emt
00:02:27]} 49. Kg2 {[%clk 00:14:06]} {[%emt 00:00:37]} Ra3 {[%clk 00:30:12]}
{[%emt 00:02:53]} 50. h6 {[%clk 00:08:43]} {[%emt 00:05:53]} Ra1 {[%clk
00:29:42]} {[%emt 00:01:00]} 51. Rb5 {[%clk 00:08:32]} {[%emt 00:00:41]} Kxe6
{[%clk 00:21:36]} {[%emt 00:08:36]} 52. Rb7 {[%clk 00:08:56]} {[%emt 00:00:06]}
Ra5 {[%clk 00:22:01]} {[%emt 00:00:05]} 53. Rxh7 {[%clk 00:08:49]} {[%emt
00:00:37]} Rh5 {[%clk 00:22:25]} {[%emt 00:00:05]} 54. Kf3 {[%clk 00:06:45]}
{[%emt 00:02:34]} Kf6 {[%clk 00:21:22]} {[%emt 00:01:33]} 55. Rh8 {[%clk
00:06:40]} {[%emt 00:00:35]} Rh4 {[%clk 00:19:51]} {[%emt 00:02:02]} 56. Ke3
{[%clk 00:06:24]} {[%emt 00:00:45]} Kf7 {[%clk 00:18:56]} {[%emt 00:01:25]} 57.
Kf3 {[%clk 00:04:35]} {[%emt 00:02:19]} Kf6 {[%clk 00:19:18]} {[%emt 00:00:09]}
58. Kg2 {[%clk 00:04:19]} {[%emt 00:00:42]} Rh5 {[%clk 00:18:16]} {[%emt
00:01:35]} 59. Kg3 {[%clk 00:03:57]} {[%emt 00:00:52]} Rh1 {[%clk 00:18:25]}
{[%emt 00:00:20]} 60. f3 {[%clk 00:03:24]} {[%emt 00:01:03]} Kf7 {[%clk
00:17:19]} {[%emt 00:01:36]} 61. f5 {[%clk 00:02:25]} {[%emt 00:01:30]} gxf5
{[%clk 00:17:42]} {[%emt 00:00:07]} 62. Kf4 {[%clk 00:02:50]} {[%emt 00:00:04]}
Rh3 {[%clk 00:18:04]} {[%emt 00:00:09]} 63. Ra8 {[%clk 00:00:46]} {[%emt
00:02:34]} Rxh6 {[%clk 00:18:21]} {[%emt 00:00:12]} 64. Ra7+ {[%clk 00:01:13]}
{[%emt 00:00:03]} Kf8 {[%clk 00:18:43]} {[%emt 00:00:08]} 65. Kxf5 {[%clk
00:01:21]} {[%emt 00:00:23]} Rb6 {[%clk 00:19:09]} {[%emt 00:00:05]} 1/2-1/2